fUSD/lending_fUSD_20240214
["ID","MTS","AMOUNT","RATE_DAILY","PERIOD"]
[314041348,1707945050789,-1144.53,0.0003589,7]
[314041349,1707945050802,-500.0,0.0003589,7]
[314041350,1707945050816,-500.0,0.0003589,7]
[314041351,1707945050829,-500.0,0.0003589,7]
[314041352,1707945050843,-500.0,0.0003589,7]
[314041353,1707945050857,-500.0,0.0003589,7]
[314041354,1707945050870,-500.0,0.0003589,7]
[314041355,1707945050884,-500.0,0.0003589,7]
[314041356,1707945050897,-3424.69,0.0003589,7]
[314041357,1707945050911,-818.43,0.0003589,7]
[314041358,1707945050925,-5392.04,0.0003589,7]
[314041359,1707945050939,-503.92,0.0003589,7]
[314041360,1707945050955,-500.0,0.0003589,7]
[314041361,1707945050969,-906.19,0.0003589,7]
[314041362,1707945050984,-500.0,0.0003589,7]
[314041363,1707945050998,-549.23,0.0003589,7]
[314041364,1707945051012,-500.0,0.0003589,7]
[314041365,1707945051027,-500.0,0.0003589,7]
[314041366,1707945051042,-500.0,0.0003589,7]
[314041367,1707945051056,-500.0,0.0003589,7]
[314041368,1707945051070,-822.06,0.0003589,7]
[314041369,1707945051084,-3341.45,0.0003589,7]
[314041370,1707945051099,-500.0,0.0003589,7]
[314041371,1707945051114,-548.07941334,0.0003589,7]
[314041372,1707945051128,-500.0,0.0003589,7]
[314041373,1707945051143,-500.0,0.0003589,7]
[314041374,1707945051157,-677.12,0.0003589,7]
[314041375,1707945051172,-500.0,0.0003589,7]
[314041376,1707945051188,-1761.82,0.0003589,7]
[314041377,1707945051203,-609.74,0.0003589,7]
[314041378,1707945051218,-500.0,0.0003589,7]
[314041379,1707945051232,-802.92,0.0003589,7]
[314041380,1707945051247,-500.0,0.0003589,7]
[314041381,1707945051261,-500.0,0.0003589,7]
[314041382,1707945051275,-500.0,0.0003589,7]
[314041383,1707945051288,-500.0,0.0003589,7]
[314041384,1707945051302,-500.0,0.0003589,7]
[314041385,1707945051315,-13582.07,0.0003589,7]
[314041386,1707945051329,-646.84849048,0.0003589,7]
[314041387,1707945051343,-435.59861855,0.0003589,7]
[314041388,1707945051357,-500.0,0.0003589,7]
[314041389,1707945051371,-500.0,0.0003589,7]
[314041390,1707945051384,-500.0,0.0003589,7]
[314041391,1707945051398,-500.0,0.0003589,7]
[314041392,1707945051412,-953.89,0.0003589,7]
[314041393,1707945051425,-513.07,0.0003589,7]
[314041394,1707945051439,-6234.22,0.0003589,7]
[314041395,1707945051453,-500.0,0.0003589,7]
[314041396,1707945051467,-500.0,0.0003589,7]
[314041397,1707945051481,-586.78,0.0003589,7]
[314041398,1707945051494,-500.0,0.0003589,7]
[314041399,1707945051508,-500.0,0.0003589,7]
[314041400,1707945051522,-500.0,0.0003589,7]
[314041401,1707945051536,-1606.08,0.0003589,7]
[314041402,1707945051550,-500.0,0.0003589,7]
[314041403,1707945051560,-500.0,0.0003589,7]
[314041404,1707945051570,-595.12,0.0003589,7]
[314041405,1707945051579,-500.0,0.0003589,7]
[314041406,1707945051589,-500.0,0.0003589,7]
[314041407,1707945051599,-622.57,0.0003589,7]
[314041408,1707945051608,-1047.58,0.0003589,7]
[314041409,1707945051618,-681.83,0.0003589,7]
[314041410,1707945051627,-548.92933047,0.0003589,7]
[314041411,1707945051636,-1810.87,0.0003589,7]
[314041412,1707945051646,-500.0,0.0003589,7]
[314041413,1707945051655,-515.63,0.0003589,7]
[314041414,1707945051665,-805.31,0.0003589,7]
[314041415,1707945051674,-500.0,0.0003589,7]
[314041416,1707945051684,-500.0,0.0003589,7]
[314041417,1707945051693,-603.11,0.0003589,7]
[314041418,1707945051703,-500.0,0.0003589,7]
[314041419,1707945051712,-500.0,0.0003589,7]
[314041420,1707945051721,-500.0,0.0003589,7]
[314041421,1707945051731,-500.0,0.0003589,7]
[314041422,1707945051740,-500.0,0.0003589,7]
[314041423,1707945051750,-500.0,0.0003589,7]
[314041424,1707945052058,-2047.91,0.0003589,7]
[314041425,1707945052087,-500.0,0.0003589,7]
[314041426,1707945052110,-841.02,0.0003589,7]
[314041427,1707945052120,-662.19,0.0003589,7]
[314041428,1707945052129,-780.8,0.0003589,7]
[314041429,1707945052139,-1486.64,0.0003589,7]
[314041430,1707945052149,-2858.66,0.0003589,7]
[314041431,1707945052159,-500.0,0.0003589,7]
[314041432,1707945052169,-500.0,0.0003589,7]
[314041433,1707945052180,-500.0,0.0003589,7]
[314041434,1707945052189,-590.33,0.0003589,7]
[314041435,1707945052199,-500.0,0.0003589,7]
[314041436,1707945052209,-786.93,0.0003589,7]
[314041437,1707945052218,-500.0,0.0003589,7]
[314041438,1707945052230,-500.0,0.0003589,7]
[314041439,1707945052240,-577.68,0.0003589,7]
[314041440,1707945052249,-4757.12,0.0003589,7]
[314041441,1707945052259,-3628.12,0.0003589,7]
[314041442,1707945052270,-598.4,0.0003589,7]
[314041443,1707945052281,-1991.03,0.0003589,7]
[314041444,1707945052290,-612.33,0.0003589,2]
[314041445,1707945052300,-500.0,0.0003589,7]
[314041446,1707945052310,-500.0,0.0003589,7]
[314041447,1707945052322,-500.0,0.0003589,7]
[314041448,1707945052332,-500.0,0.0003589,7]
[314041449,1707945052342,-500.0,0.0003589,7]
[314041450,1707945052352,-617.82,0.0003589,7]
[314041451,1707945052362,-2139.36,0.0003589,7]
[314041452,1707945052371,-502.43,0.0003589,7]
[314041453,1707945052381,-807.41,0.0003589,7]
[314041454,1707945052390,-685.44,0.0003589,7]
[314041455,1707945052399,-500.0,0.0003589,7]
[314041456,1707945052410,-500.0,0.0003589,7]
[314041457,1707945052421,-2211.07,0.0003589,7]
[314041458,1707945052431,-730.2,0.0003589,7]
[314041459,1707945052441,-500.0,0.0003589,7]
[314041460,1707945052451,-500.0,0.0003589,7]
[314041461,1707945052460,-711.33,0.0003589,7]
[314041462,1707945052470,-500.0,0.0003589,7]
[314041463,1707945052480,-743.99,0.0003589,7]
[314041464,1707945052490,-2294.91,0.0003589,7]
[314041465,1707945052501,-2043.37,0.0003589,7]
[314041466,1707945052511,-500.0,0.0003589,7]
[314041467,1707945052519,-500.0,0.0003589,7]
[314041468,1707945052528,-500.0,0.0003589,7]
[314041469,1707945052537,-594.55,0.0003589,7]
[314041470,1707945052548,-500.0,0.0003589,7]
[314041471,1707945052558,-500.0,0.0003589,7]
[314041472,1707945052567,-6637.56,0.0003589,7]
[314041473,1707945052576,-500.0,0.0003589,7]
[314041474,1707945052588,-500.0,0.0003589,7]
[314041475,1707945052599,-500.0,0.0003589,7]
[314041476,1707945052609,-500.0,0.0003589,7]
[314041477,1707945052619,-540.2,0.0003589,7]
[314041478,1707945052629,-500.0,0.0003589,7]
[314041479,1707945052639,-1343.45,0.0003589,7]
[314041480,1707945052647,-1215.55,0.0003589,7]
[314041481,1707945052657,-1240.3,0.0003589,7]
[314041482,1707945052667,-595.97,0.0003589,7]
[314041483,1707945052676,-1831.02,0.0003589,7]
[314041484,1707945052685,-500.0,0.0003589,7]
[314041485,1707945052694,-500.0,0.0003589,7]
[314041486,1707945052703,-1575.34,0.0003589,7]
[314041487,1707945052712,-500.0,0.0003589,7]
[314041488,1707945052721,-1000.0,0.0003589,7]
[314041489,1707945052730,-500.0,0.0003589,7]
[314041490,1707945052739,-1949.84,0.0003589,7]
[314041491,1707945052748,-500.0,0.0003589,7]
[314041492,1707945052757,-500.0,0.0003589,7]
[314041493,1707945052766,-500.0,0.0003589,7]
[314041494,1707945052776,-500.0,0.0003589,7]
[314041495,1707945052785,-500.0,0.0003589,7]
[314041496,1707945052794,-1376.91,0.0003589,7]
[314041497,1707945052804,-1838.93,0.0003589,7]
[314041498,1707945052813,-500.0,0.0003589,7]
[314041499,1707945052823,-500.0,0.0003589,7]
[314041500,1707945052833,-1020.07,0.0003589,7]
[314041501,1707945052842,-500.0,0.0003589,7]
[314041502,1707945052851,-500.0,0.0003589,7]
[314041503,1707945052862,-500.0,0.0003589,7]
[314041504,1707945052871,-1264.88,0.0003589,7]
[314041505,1707945052881,-500.0,0.0003589,7]
[314041506,1707945052890,-4521.24,0.0003589,7]
[314041507,1707945052899,-791.66,0.0003589,7]
[314041508,1707945052909,-500.0,0.0003589,7]
[314041509,1707945052920,-4808.1,0.0003589,7]
[314041510,1707945052929,-500.0,0.0003589,7]
[314041511,1707945052942,-500.0,0.0003589,7]
[314041512,1707945052953,-500.0,0.0003589,7]
[314041513,1707945052964,-1751.89,0.0003589,7]
[314041514,1707945052974,-660.03,0.0003589,7]
[314041515,1707945052983,-500.0,0.0003589,7]
[314041516,1707945052995,-500.0,0.0003589,7]
[314041517,1707945053005,-500.0,0.0003589,7]
[314041518,1707945053014,-665.94,0.0003589,7]
[314041519,1707945053026,-720.52,0.0003589,7]
[314041520,1707945053037,-1411.1,0.0003589,7]
[314041521,1707945053048,-1028.68,0.0003589,7]
[314041522,1707945053057,-500.0,0.0003589,7]
[314041523,1707945053066,-500.0,0.0003589,7]
[314041524,1707945053076,-1101.95,0.0003589,7]
[314041525,1707945053085,-500.0,0.0003589,7]
[314041526,1707945053094,-633.08,0.0003589,7]
[314041527,1707945053103,-679.4,0.0003589,7]
[314041528,1707945053114,-500.0,0.0003589,7]
[314041529,1707945053123,-1588.43,0.0003589,7]
[314041530,1707945053133,-500.0,0.0003589,7]
[314041531,1707945053142,-859.31,0.0003589,7]
[314041532,1707945053151,-500.0,0.0003589,7]
[314041533,1707945053161,-570.05,0.0003589,7]
[314041534,1707945053170,-2455.03,0.0003589,7]
[314041535,1707945053180,-500.0,0.0003589,7]
[314041536,1707945053189,-500.0,0.0003589,7]
[314041537,1707945053198,-500.0,0.0003589,7]
[314041538,1707945053207,-6828.37,0.0003589,7]
[314041539,1707945053217,-500.0,0.0003589,7]
[314041540,1707945053226,-500.0,0.0003589,7]
[314041541,1707945053235,-500.0,0.0003589,7]
[314041542,1707945053244,-7718.39,0.0003589,7]
[314041543,1707945053254,-500.0,0.0003589,7]
[314041544,1707945053264,-500.0,0.0003589,7]
[314041545,1707945053273,-500.0,0.0003589,7]
[314041546,1707945053282,-730.4,0.0003589,7]
[314041547,1707945053292,-500.0,0.0003589,7]
[314041548,1707945053313,-1547.02,0.0003589,7]
[314041549,1707945053323,-500.0,0.0003589,7]
[314041550,1707945053333,-1211.6,0.0003589,7]
[314041551,1707945053344,-500.0,0.0003589,7]
[314041552,1707945053354,-415.29796186,0.0003589,7]
[314041553,1707945053363,-592.22,0.0003589,7]
[314041554,1707945053373,-1187.29,0.0003589,7]
[314041555,1707945053382,-6862.69,0.0003589,7]
[314041556,1707945053391,-500.0,0.0003589,7]
[314041557,1707945053401,-1752.35,0.0003589,7]
[314041558,1707945053411,-500.0,0.0003589,7]
[314041559,1707945053420,-565.71,0.0003589,7]
[314041560,1707945053430,-551.53,0.0003589,7]
[314041561,1707945053439,-279.059146,0.0003589,7]
[314041562,1707945053449,-500.0,0.0003589,7]
[314041563,1707945053458,-500.0,0.0003589,7]
[314041564,1707945053467,-828.25,0.0003589,7]
[314041565,1707945053477,-500.0,0.0003589,7]
[314041566,1707945053486,-500.0,0.0003589,7]
[314041567,1707945053495,-865.42,0.0003589,7]
[314041568,1707945053504,-500.0,0.0003589,7]
[314041569,1707945053514,-1003.79,0.0003589,7]
[314041570,1707945053524,-5366.99,0.0003589,7]
[314041571,1707945053533,-1623.54,0.0003589,7]
[314041572,1707945053543,-1200.22,0.0003589,7]
[314041573,1707945053551,-500.0,0.0003589,7]
[314041574,1707945053561,-1014.56,0.0003589,7]
[314041575,1707945053570,-558.49,0.0003589,7]
[314041576,1707945053579,-500.0,0.0003589,7]
[314041577,1707945053589,-500.0,0.0003589,7]
[314041578,1707945053598,-500.0,0.0003589,7]
[314041579,1707945053608,-500.0,0.0003589,7]
[314041580,1707945053617,-500.0,0.0003589,7]
[314041581,1707945053627,-500.0,0.0003589,7]
[314041582,1707945053636,-995.34,0.0003589,7]
[314041583,1707945053645,-500.0,0.0003589,7]
[314041584,1707945053655,-500.0,0.0003589,7]
[314041585,1707945053664,-746.35,0.0003589,7]
[314041586,1707945053674,-1044.44,0.0003589,7]
[314041587,1707945053683,-500.0,0.0003589,7]
[314041588,1707945053693,-501.11,0.0003589,7]
[314041589,1707945053702,-612.26830892,0.0003589,7]
[314041590,1707945053712,-1716.87,0.0003589,7]
[314041591,1707945053721,-587.47,0.0003589,7]
[314041592,1707945053730,-1848.23,0.0003589,7]
[314041593,1707945053743,-1168.36,0.0003589,7]
[314041594,1707945053753,-500.0,0.0003589,7]
[314041595,1707945053762,-2233.44,0.0003589,7]
[314041596,1707945053772,-500.0,0.0003589,7]
[314041597,1707945053781,-500.0,0.0003589,7]
[314041598,1707945053791,-500.0,0.0003589,7]
[314041599,1707945053800,-500.0,0.0003589,7]
[314041600,1707945053810,-983.47,0.0003589,7]
[314041601,1707945053819,-580.91,0.0003589,7]
[314041602,1707945053828,-826.29,0.0003589,7]
[314041603,1707945053838,-500.0,0.0003589,7]
[314041604,1707945053848,-250.0,0.0003589,7]
[314041605,1707945053858,-972.52,0.0003589,7]
[314041606,1707945053868,-500.0,0.0003589,7]
[314041607,1707945053877,-898.19,0.0003589,7]
[314041608,1707945053887,-500.0,0.0003589,7]
[314041609,1707945053897,-500.0,0.0003589,7]
[314041610,1707945053906,-500.0,0.0003589,7]
[314041611,1707945053915,-2032.9,0.0003589,7]
[314041612,1707945053925,-500.0,0.0003589,7]
[314041613,1707945053935,-500.0,0.0003589,7]
[314041614,1707945053947,-500.0,0.0003589,7]
[314041615,1707945053956,-778.33,0.0003589,7]
[314041616,1707945053966,-500.0,0.0003589,7]
[314041617,1707945053976,-7693.98,0.0003589,7]
[314041618,1707945053986,-500.0,0.0003589,7]
[314041619,1707945053996,-500.0,0.0003589,7]
[314041620,1707945054010,-500.0,0.0003589,7]
[314041621,1707945054021,-500.0,0.0003589,7]
[314041622,1707945054031,-647.49,0.0003589,7]
[314041623,1707945054042,-551.52,0.0003589,7]
[314041624,1707945054051,-500.0,0.0003589,7]
[314041625,1707945054061,-155.15087727,0.0003589,7]
[314041626,1707945054071,-500.0,0.0003589,7]
[314041627,1707945054081,-500.0,0.0003589,7]
[314041628,1707945054091,-3552.29,0.0003589,7]
[314041629,1707945054102,-500.0,0.0003589,7]
[314041630,1707945054112,-500.0,0.0003589,7]
[314041631,1707945054122,-3310.79,0.0003589,7]
[314041632,1707945054133,-630.27,0.0003589,7]
[314041633,1707945054142,-569.11,0.0003589,7]
[314041634,1707945054152,-1313.58,0.0003589,7]
[314041635,1707945054162,-500.0,0.0003589,7]
[314041636,1707945054172,-636.08,0.0003589,7]
[314041637,1707945054182,-500.0,0.0003589,7]
[314041638,1707945054193,-500.0,0.0003589,7]
[314041639,1707945054203,-500.0,0.0003589,7]
[314041640,1707945054213,-153.54697604,0.00035897,2]
[314041641,1707945054223,-155.0,0.00035987,2]
[314041642,1707945054233,-150.0,0.00035999,2]
[314041643,1707945054243,-150.0,0.00035999,2]
[314041644,1707945054254,-100000.0,0.00036,6]
[314041645,1707945054264,-500.0,0.00036,2]
[314041646,1707945054274,-1502.349669,0.00036,2]
[314041647,1707945054287,-1534.207161,0.00036,2]
[314041648,1707945054298,-3004.699339,0.00036,2]
[314041649,1707945054308,-10276.490814,0.00036,2]
[314041650,1707945054318,-2151.263766,0.00036,2]
[314041651,1707945054328,-17398.248266,0.00036,2]
[314041652,1707945054338,-1525.605465,0.00036,2]
[314041653,1707945054350,-153.0,0.00036,2]
[314041654,1707945054360,-250.0,0.00036,2]
[314041655,1707945054370,-24246.48671313,0.00036128,9]
[314041656,1707945054380,-150.0,0.00036129,2]
[314041657,1707945054391,-1000.0,0.00036135,2]
[314041658,1707945054401,-222.021518,0.00036148,18]
[314041659,1707945054411,-155.0,0.00036156,7]
[314041660,1707945054421,-500.0,0.00036164,7]
[314041661,1707945054430,-556.75,0.00036164,7]
[314041662,1707945054440,-586.75,0.00036164,7]
[314041663,1707945054449,-799.09,0.00036164,7]
[314041664,1707945054459,-418.3759593,0.00036164,7]
[314041665,1707945054468,-500.0,0.00036164,7]
[314041666,1707945054478,-500.0,0.00036164,7]
[314041667,1707945054487,-500.0,0.00036164,7]
[314041668,1707945054497,-899.57,0.00036164,7]
[314041669,1707945054507,-500.0,0.00036164,7]
[314041670,1707945054518,-2544.37,0.00036164,7]
[314041671,1707945054527,-500.0,0.00036164,7]
[314041672,1707945054537,-647.67,0.00036164,7]
[314041673,1707945054547,-500.0,0.00036164,7]
[314041674,1707945054557,-500.0,0.00036164,7]
[314041675,1707945054567,-500.0,0.00036164,7]
[314041676,1707945054577,-558.18,0.00036164,7]
[314041677,1707945054587,-500.0,0.00036164,7]
[314041678,1707945054597,-694.58,0.00036164,7]
[314041679,1707945054607,-500.0,0.00036164,2]
[314041680,1707945054616,-500.0,0.00036164,7]
[314041681,1707945054626,-1144.53,0.00036164,7]
[314041682,1707945054636,-506.49867837,0.00036164,7]
[314041683,1707945054646,-500.0,0.00036164,7]
[314041684,1707945054655,-500.0,0.00036164,7]
[314041685,1707945054665,-500.0,0.00036164,7]
[314041686,1707945054675,-500.0,0.00036164,7]
[314041687,1707945054685,-500.0,0.00036164,7]
[314041688,1707945054695,-500.0,0.00036164,7]
[314041689,1707945054704,-3424.69,0.00036164,7]
[314041690,1707945054714,-818.43,0.00036164,7]
[314041691,1707945054724,-5392.04,0.00036164,7]
[314041692,1707945054733,-503.92,0.00036164,7]
[314041693,1707945054743,-500.0,0.00036164,7]
[314041694,1707945054752,-906.19,0.00036164,7]
[314041695,1707945054762,-549.23,0.00036164,7]
[314041696,1707945054771,-500.0,0.00036164,7]
[314041697,1707945054781,-500.0,0.00036164,7]
[314041698,1707945054791,-500.0,0.00036164,7]
[314041699,1707945054800,-500.0,0.00036164,7]
[314041700,1707945054810,-822.06,0.00036164,7]
[314041701,1707945054819,-500.0,0.00036164,7]
[314041702,1707945054829,-3341.45,0.00036164,7]
[314041703,1707945054838,-500.0,0.00036164,7]
[314041704,1707945054849,-500.0,0.00036164,7]
[314041705,1707945054859,-677.12,0.00036164,7]
[314041706,1707945054868,-500.0,0.00036164,7]
[314041707,1707945054878,-1761.82,0.00036164,7]
[314041708,1707945054889,-609.74,0.00036164,7]
[314041709,1707945054899,-500.0,0.00036164,7]
[314041710,1707945054909,-802.92,0.00036164,7]
[314041711,1707945054918,-500.0,0.00036164,7]
[314041712,1707945054928,-500.0,0.00036164,7]
[314041713,1707945054939,-500.0,0.00036164,7]
[314041714,1707945054950,-500.0,0.00036164,7]
[314041715,1707945054961,-500.0,0.00036164,7]
[314041716,1707945054971,-13582.07,0.00036164,7]
[314041717,1707945054981,-500.0,0.00036164,7]
[314041718,1707945054991,-500.0,0.00036164,7]
[314041719,1707945055000,-500.0,0.00036164,7]
[314041720,1707945055010,-953.89,0.00036164,7]
[314041721,1707945055019,-500.0,0.00036164,7]
[314041722,1707945055031,-513.07,0.00036164,7]
[314041723,1707945055041,-6234.22,0.00036164,7]
[314041724,1707945055051,-500.0,0.00036164,7]
[314041725,1707945055061,-500.0,0.00036164,7]
[314041726,1707945055071,-586.78,0.00036164,7]
[314041727,1707945055082,-500.0,0.00036164,7]
[314041728,1707945055092,-500.0,0.00036164,7]
[314041729,1707945055113,-500.0,0.00036164,7]
[314041730,1707945055125,-1606.08,0.00036164,7]
[314041731,1707945055135,-500.0,0.00036164,7]
[314041732,1707945055146,-500.0,0.00036164,7]
[314041733,1707945055156,-595.12,0.00036164,7]
[314041734,1707945055166,-500.0,0.00036164,7]
[314041735,1707945055177,-1047.58,0.00036164,7]
[314041736,1707945055187,-681.83,0.00036164,7]
[314041737,1707945055198,-1810.87,0.00036164,7]
[314041738,1707945055208,-500.0,0.00036164,7]
[314041739,1707945055219,-515.63,0.00036164,7]
[314041740,1707945055229,-805.31,0.00036164,7]
[314041741,1707945055240,-500.0,0.00036164,7]
[314041742,1707945055251,-603.11,0.00036164,7]
[314041743,1707945055263,-500.0,0.00036164,7]
[314041744,1707945055274,-500.0,0.00036164,7]
[314041745,1707945055286,-500.0,0.00036164,7]
[314041746,1707945055299,-500.0,0.00036164,7]
[314041747,1707945055309,-500.0,0.00036164,7]
[314041748,1707945055319,-500.0,0.00036164,7]
[314041749,1707945055533,-500.0,0.00036164,7]
[314041750,1707945055552,-2047.91,0.00036164,7]
[314041751,1707945055565,-500.0,0.00036164,7]
[314041752,1707945055575,-841.02,0.00036164,7]
[314041753,1707945055585,-662.19,0.00036164,7]
[314041754,1707945055596,-780.8,0.00036164,7]
[314041755,1707945055606,-1486.64,0.00036164,7]
[314041756,1707945055616,-2858.66,0.00036164,7]
[314041757,1707945055626,-500.0,0.00036164,7]
[314041758,1707945055635,-500.0,0.00036164,7]
[314041759,1707945055645,-500.0,0.00036164,7]
[314041760,1707945055655,-590.33,0.00036164,7]
[314041761,1707945055665,-500.0,0.00036164,7]
[314041762,1707945055675,-786.93,0.00036164,7]
[314041763,1707945055685,-500.0,0.00036164,7]
[314041764,1707945055695,-500.0,0.00036164,7]
[314041765,1707945055704,-577.68,0.00036164,7]
[314041766,1707945055715,-4757.12,0.00036164,7]
[314041767,1707945055725,-3628.12,0.00036164,7]
[314041768,1707945055734,-598.4,0.00036164,7]
[314041769,1707945055744,-1991.03,0.00036164,7]
[314041770,1707945055754,-612.33,0.00036164,2]
[314041771,1707945055763,-500.0,0.00036164,7]
[314041772,1707945055773,-500.0,0.00036164,7]
[314041773,1707945055782,-500.0,0.00036164,7]
[314041774,1707945055792,-500.0,0.00036164,7]
[314041775,1707945055802,-617.82,0.00036164,7]
[314041776,1707945055812,-2139.36,0.00036164,7]
[314041777,1707945055821,-502.43,0.00036164,7]
[314041778,1707945055831,-807.41,0.00036164,7]
[314041779,1707945055840,-685.44,0.00036164,7]
[314041780,1707945055850,-500.0,0.00036164,7]
[314041781,1707945055860,-500.0,0.00036164,7]
[314041782,1707945055869,-2211.07,0.00036164,7]
[314041783,1707945055879,-730.2,0.00036164,7]
[314041784,1707945055889,-500.0,0.00036164,7]
[314041785,1707945055899,-508.36183783,0.00036164,7]
[314041786,1707945055909,-711.33,0.00036164,7]
[314041787,1707945055919,-500.0,0.00036164,7]
[314041788,1707945055929,-743.99,0.00036164,7]
[314041789,1707945055939,-2294.91,0.00036164,7]
[314041790,1707945055952,-2043.37,0.00036164,7]
[314041791,1707945055962,-500.0,0.00036164,7]
[314041792,1707945055972,-500.0,0.00036164,7]
[314041793,1707945055982,-500.0,0.00036164,7]
[314041794,1707945055993,-594.55,0.00036164,7]
[314041795,1707945056002,-500.0,0.00036164,7]
[314041796,1707945056012,-500.0,0.00036164,7]
[314041797,1707945056023,-6637.56,0.00036164,7]
[314041798,1707945056033,-500.0,0.00036164,7]
[314041799,1707945056042,-500.0,0.00036164,7]
[314041800,1707945056051,-500.0,0.00036164,7]
[314041801,1707945056061,-500.0,0.00036164,7]
[314041802,1707945056070,-500.0,0.00036164,7]
[314041803,1707945056080,-1343.45,0.00036164,7]
[314041804,1707945056090,-1215.55,0.00036164,7]
[314041805,1707945056100,-1240.3,0.00036164,7]
[314041806,1707945056109,-595.97,0.00036164,7]
[314041807,1707945056119,-1831.02,0.00036164,7]
[314041808,1707945056128,-500.0,0.00036164,7]
[314041809,1707945056138,-500.0,0.00036164,7]
[314041810,1707945056147,-1575.34,0.00036164,7]
[314041811,1707945056157,-613.16,0.00036164,7]
[314041812,1707945056167,-1000.0,0.00036164,7]
[314041813,1707945056177,-500.0,0.00036164,7]
[314041814,1707945056186,-1949.84,0.00036164,7]
[314041815,1707945056196,-500.0,0.00036164,7]
[314041816,1707945056206,-500.0,0.00036164,7]
[314041817,1707945056215,-500.0,0.00036164,7]
[314041818,1707945056224,-500.0,0.00036164,7]
[314041819,1707945056233,-500.0,0.00036164,7]
[314041820,1707945056243,-1376.91,0.00036164,7]
[314041821,1707945056255,-1838.93,0.00036164,7]
[314041822,1707945056265,-500.0,0.00036164,7]
[314041823,1707945056275,-500.0,0.00036164,7]
[314041824,1707945056287,-1020.07,0.00036164,7]
[314041825,1707945056296,-500.0,0.00036164,7]
[314041826,1707945056306,-523.70487977,0.00036164,7]
[314041827,1707945056316,-500.0,0.00036164,7]
[314041828,1707945056326,-1264.88,0.00036164,7]
[314041829,1707945056337,-500.0,0.00036164,7]
[314041830,1707945056349,-4521.24,0.00036164,7]
[314041831,1707945056358,-791.66,0.00036164,7]
[314041832,1707945056369,-4808.1,0.00036164,7]
[314041833,1707945056379,-500.0,0.00036164,7]
[314041834,1707945056389,-500.0,0.00036164,7]
[314041835,1707945056398,-500.0,0.00036164,7]
[314041836,1707945056408,-500.0,0.00036164,7]
[314041837,1707945056418,-1751.89,0.00036164,7]
[314041838,1707945056428,-660.03,0.00036164,7]
[314041839,1707945056437,-500.0,0.00036164,7]
[314041840,1707945056446,-500.0,0.00036164,7]
[314041841,1707945056455,-500.0,0.00036164,7]
[314041842,1707945056464,-665.94,0.00036164,7]
[314041843,1707945056474,-1411.1,0.00036164,7]
[314041844,1707945056483,-720.52,0.00036164,7]
[314041845,1707945056493,-1028.68,0.00036164,7]
[314041846,1707945056502,-500.0,0.00036164,7]
[314041847,1707945056511,-500.0,0.00036164,7]